bitfinex/quotes_BTCUSD_20240717
["timestamp","ask_amount","ask_price","bid_price","bid_amount"]
[1721233426023,0.310219,64471.0,64460.0,0.15438174]
[1721233426241,0.155122,64466.0,64460.0,0.15438174]
[1721233426465,0.155122,64466.0,64461.0,0.05350446]
[1721233426676,0.155114,64469.0,64465.0,0.15438174]
[1721233426897,0.155116,64468.0,64466.0,0.15438174]
[1721233427115,0.155118,64467.0,64466.0,0.15438174]
[1721233427333,0.155118,64467.0,64466.0,0.17517036]
[1721233427771,0.465354,64467.0,64466.0,0.17517036]
[1721233427989,0.155113,64469.0,64466.0,0.17517036]
[1721233428241,0.155113,64469.0,64466.0,0.18517036]
[1721233428717,0.310208,64473.0,64466.0,0.17517036]
[1721233428895,0.001,64467.0,64466.0,0.16838174]
[1721233429538,0.001,64467.0,64466.0,0.18138174]
[1721233429770,0.155118,64467.0,64466.0,0.16638174]
[1721233429973,0.465354,64467.0,64466.0,0.16638174]
[1721233430180,1.085826,64467.0,64466.0,0.012]
[1721233430383,1.227826,64467.0,64466.0,0.012]
[1721233431216,0.155143,64457.0,64448.0,0.46615151]
[1721233431418,0.310236,64467.0,64454.0,0.15438174]
[1721233431624,0.15514,64458.0,64455.0,0.00310238]
[1721233431852,0.15514,64458.0,64456.0,0.15438174]
[1721233432275,0.07717479,64457.0,64456.0,0.15438174]
[1721233432484,0.85288479,64457.0,64456.0,0.16981991]
[1721233432682,1.16316879,64457.0,64456.0,0.16981991]
[1721233433903,1.085994,64457.0,64456.0,0.16981991]
[1721233434511,1.085994,64457.0,64456.0,0.18281991]
[1721233434673,1.085994,64457.0,64456.0,0.15438174]
[1721233434674,1.396278,64457.0,64456.0,0.15438174]
[1721233434877,0.465505,64446.0,64441.0,0.266]
[1721233435084,0.465505,64446.0,64445.0,0.23178174]
[1721233435308,0.155168,64446.0,64445.0,0.23178174]
[1721233435744,0.465505,64446.0,64445.0,0.23178174]
[1721233435943,0.155168,64446.0,64445.0,0.29555991]
[1721233436231,0.156168,64446.0,64445.0,0.30855991]
[1721233437187,0.466505,64446.0,64445.0,0.30855991]
[1721233439077,0.776842,64446.0,64445.0,0.23115991]
[1721233439276,0.466505,64446.0,64445.0,0.18138174]
[1721233440250,0.776842,64446.0,64445.0,0.18138174]
[1721233441046,0.466505,64446.0,64445.0,0.18138174]
[1721233441642,1.087179,64446.0,64445.0,0.18138174]
[1721233442900,1.087179,64446.0,64445.0,0.16738174]
[1721233443106,0.001,64446.0,64445.0,0.18411991]
[1721233443317,0.001,64446.0,64445.0,0.72623544]
[1721233443523,0.001,64446.0,64445.0,1.16037491]
[1721233443771,0.0447857,64482.0,64445.0,1.16037491]
[1721233443772,0.155136,64460.0,64452.0,0.155153]
[1721233443981,0.155136,64460.0,64457.0,0.15438174]
[1721233444186,0.155136,64460.0,64458.0,0.01543817]
[1721233444384,0.155136,64460.0,64459.0,0.22068174]
[1721233444731,0.387491,64477.0,64460.0,0.0769]
[1721233444732,0.155128,64463.0,64460.0,0.0769]
[1721233444935,0.155128,64463.0,64461.0,0.15438174]
[1721233445470,0.15513,64462.0,64461.0,0.15438174]
[1721233445677,0.310195,64476.0,64461.0,0.20688373]
[1721233445678,0.155125,64465.0,64461.0,0.20688373]
[1721233445876,0.08553479,64478.0,64464.0,0.35438174]
[1721233445877,0.155108,64472.0,64464.0,0.35438174]
[1721233446083,0.155109,64471.0,64467.0,0.15438174]
[1721233446287,0.3102,64475.0,64467.0,0.15438174]
[1721233446491,0.155109,64471.0,64467.0,0.15438174]
[1721233446665,0.155109,64471.0,64468.0,0.05095077]
[1721233446867,0.155109,64471.0,64469.0,0.15438174]
[1721233448055,0.310169,64481.0,64469.0,0.15438174]
[1721233448056,0.0448807,64505.0,64470.0,0.69460524]
[1721233448261,0.00835,64520.0,64470.0,0.69460524]
[1721233448262,0.00836,64534.0,64531.0,0.354964]
[1721233448463,0.00836,64534.0,64533.0,1.251795]
[1721233448669,0.00834,64556.0,64541.0,0.9747]
[1721233448889,0.00834,64556.0,64543.0,0.774675]
[1721233449094,0.00834,64556.0,64543.0,1.26725752]
[1721233449297,0.00834,64556.0,64543.0,1.50955752]
[1721233449458,0.00834,64556.0,64552.0,0.69583]
[1721233449671,0.00834,64556.0,64552.0,0.66474]
[1721233449872,0.00834,64556.0,64552.0,1.028657]
[1721233450079,0.00834,64556.0,64552.0,0.71883]
[1721233450284,0.00834,64556.0,64555.0,0.154906]
[1721233450488,0.00834,64556.0,64555.0,0.177906]
[1721233450686,0.00834,64556.0,64555.0,0.487719]
[1721233450867,0.00834,64556.0,64555.0,0.797532]
[1721233451470,0.00835,64559.0,64558.0,0.154899]
[1721233451659,0.00835,64559.0,64558.0,0.15799616]
[1721233451850,0.00835,64559.0,64558.0,0.00309721]
[1721233452723,0.00835,64559.0,64558.0,0.01709721]
[1721233454190,0.00935,64559.0,64558.0,0.18499621]
[1721233454390,0.00935,64559.0,64558.0,0.03009721]
[1721233454632,0.00935,64559.0,64558.0,0.18499621]
[1721233455195,0.00935,64559.0,64558.0,0.17099621]
[1721233455315,0.00935,64559.0,64558.0,0.01609721]
[1721233455520,0.00835,64559.0,64558.0,0.21983957]
[1721233455725,0.00935,64559.0,64558.0,0.69653657]
[1721233456152,0.00835,64559.0,64558.0,0.36073857]
[1721233456366,0.00835,64559.0,64558.0,0.21983957]
[1721233456576,0.00935,64559.0,64558.0,0.38673857]
[1721233456784,0.00935,64559.0,64558.0,0.23183957]
[1721233456995,0.00935,64559.0,64558.0,0.38673857]
[1721233457193,0.00935,64559.0,64558.0,0.69653657]
[1721233457401,0.00935,64559.0,64558.0,0.38673857]
[1721233458747,0.00835,64559.0,64558.0,0.21983957]
[1721233458979,0.00935,64559.0,64558.0,0.21783957]
[1721233459602,0.154883,64565.0,64558.0,0.38673857]
[1721233459751,0.154883,64565.0,64559.0,0.2269226]
[1721233459952,0.154883,64565.0,64559.0,0.2241286]
[1721233460210,0.07717479,64562.0,64559.0,0.2241286]
[1721233460419,0.07295,64564.0,64559.0,0.15438174]
[1721233460851,0.154889,64563.0,64559.0,0.15438174]
[1721233461706,0.163236,64564.0,64559.0,0.15438174]
[1721233461910,0.154887,64563.0,64559.0,0.15438174]
[1721233462057,0.154887,64563.0,64560.0,0.03132972]
[1721233462276,0.00935,64564.0,64561.0,0.15438174]
[1721233462716,0.001,64563.0,64561.0,0.15438174]
[1721233462831,0.001,64563.0,64562.0,0.00309746]
[1721233463033,0.001,64563.0,64562.0,0.1574792]
[1721233463286,0.001,64563.0,64562.0,0.19454959]
[1721233463489,0.00835,64564.0,64562.0,0.19454959]
[1721233463696,0.00835,64564.0,64563.0,0.15747907]
[1721233463926,0.154878,64567.0,64563.0,0.15747907]
[1721233464129,0.309741,64570.0,64564.0,0.002794]
[1721233464330,0.309741,64570.0,64565.0,0.17864906]
[1721233464524,0.309741,64570.0,64566.0,0.002794]
[1721233464525,0.154876,64568.0,64566.0,0.002794]
[1721233464723,0.154876,64568.0,64567.0,0.15438174]
[1721233465168,0.00833,64571.0,64567.0,0.15438174]
[1721233465380,0.00833,64571.0,64568.0,0.03335361]
[1721233465594,0.15487,64570.0,64569.0,0.15438174]
[1721233465794,0.464611,64570.0,64569.0,0.15438174]
[1721233465969,0.774352,64570.0,64569.0,0.15438174]
[1721233467362,0.775352,64570.0,64569.0,0.16738174]
[1721233467560,0.775352,64570.0,64569.0,0.18411991]
[1721233468308,0.775352,64570.0,64569.0,0.19811991]
[1721233468497,0.465611,64570.0,64569.0,0.19811991]
[1721233468842,0.775352,64570.0,64569.0,0.19811991]
[1721233469550,0.465611,64570.0,64569.0,0.19811991]
[1721233469767,0.001,64570.0,64569.0,0.19811991]
[1721233471418,0.465611,64570.0,64569.0,0.19811991]
[1721233471634,0.15587,64570.0,64569.0,0.19811991]
[1721233471844,0.001,64570.0,64569.0,0.19811991]
[1721233472048,0.15587,64570.0,64569.0,0.19811991]
[1721233472728,0.309634,64593.0,64569.0,0.19811991]
[1721233472729,0.309658,64588.0,64577.0,0.46456]
[1721233472939,0.309663,64587.0,64577.0,0.22083774]
[1721233473155,0.154826,64589.0,64577.0,0.68539774]
[1721233473360,0.309629,64594.0,64577.0,1.32781174]
[1721233473565,0.154814,64594.0,64577.0,1.32781174]
[1721233473782,0.154826,64589.0,64585.0,0.2]
[1721233473989,0.154826,64589.0,64586.0,0.15438174]
[1721233474256,0.154826,64589.0,64587.0,0.01543817]
[1721233474458,0.154826,64589.0,64588.0,0.15438174]
[1721233474877,0.774126,64589.0,64588.0,0.15438174]
[1721233475088,1.083776,64589.0,64588.0,0.15438174]
[1721233475529,0.774255,64578.0,64577.0,0.014]
[1721233475737,0.774255,64578.0,64577.0,0.16838174]
[1721233475955,0.55755,64589.0,64577.0,0.16838174]
[1721233475956,0.309694,64580.0,64577.0,0.18521991]
[1721233476171,0.464553,64578.0,64577.0,0.03083817]
[1721233476375,0.464553,64578.0,64577.0,0.008]
[1721233476594,0.309667,64586.0,64577.0,0.008]
[1721233476798,0.154851,64579.0,64578.0,0.15717574]
[1721233476999,0.154851,64579.0,64578.0,0.15438174]
[1721233477228,0.154851,64579.0,64578.0,0.17201991]
[1721233477442,0.309667,64586.0,64578.0,0.17201991]
[1721233477443,0.2479,64589.0,64578.0,0.17201991]
[1721233477654,0.2479,64589.0,64579.0,0.12858913]
[1721233477655,0.183,64589.0,64579.0,0.12858913]
[1721233477882,0.183,64589.0,64580.0,0.28297087]
[1721233477883,0.1,64588.0,64580.0,0.28297087]
[1721233478148,0.154843,64582.0,64581.0,0.16145003]
[1721233478322,0.1,64588.0,64581.0,0.31583177]
[1721233478564,0.1,64588.0,64582.0,0.28297087]
[1721233478565,0.154835,64585.0,64582.0,0.28297087]
[1721233478735,0.154836,64585.0,64583.0,0.16379655]
[1721233478940,0.309662,64587.0,64584.0,0.28297087]
[1721233478941,0.154832,64586.0,64584.0,0.28297087]
[1721233479150,0.154832,64586.0,64585.0,0.12858913]
[1721233479320,0.56449701,64586.0,64585.0,0.28297087]
[1721233479524,0.56449701,64586.0,64585.0,0.18948566]
[1721233479796,0.56449701,64586.0,64585.0,0.28296551]
[1721233479945,0.87416101,64586.0,64585.0,0.28296551]
[1721233480163,1.18382501,64586.0,64585.0,0.28296551]
[1721233480808,1.18382501,64586.0,64585.0,0.15438174]
[1721233481186,0.56449701,64586.0,64585.0,0.15438174]
[1721233481388,0.56449701,64586.0,64585.0,0.17121991]
[1721233481614,0.56449701,64586.0,64585.0,0.31380789]
[1721233481861,0.56449701,64586.0,64585.0,0.32780789]
[1721233482577,0.10000001,64586.0,64585.0,0.19921991]
[1721233482788,0.10000001,64586.0,64585.0,0.32780414]
[1721233483202,0.10000001,64586.0,64585.0,0.32780299]
[1721233484893,0.10000001,64586.0,64585.0,0.028]
[1721233484894,1.66806412,64586.0,64585.0,0.028]
[1721233485019,1.67511291,64586.0,64585.0,0.028]
[1721233485224,2.03477691,64586.0,64585.0,0.028]
[1721233485435,2.03477691,64586.0,64553.0,0.01860287]
[1721233485436,0.464691,64559.0,64558.0,0.002794]
[1721233485642,1.084279,64559.0,64558.0,0.15438174]
[1721233485855,1.0920173,64559.0,64558.0,0.16991121]
[1721233486224,0.4724293,64559.0,64558.0,0.16991121]
[1721233486602,0.0077383,64559.0,64558.0,0.16991121]
[1721233486831,0.0077383,64559.0,64558.0,0.5941428]
[1721233487246,0.309744,64570.0,64558.0,0.5941428]
[1721233487247,0.154879,64567.0,64558.0,0.5941428]
[1721233487454,0.154886,64564.0,64560.0,0.15438174]
[1721233487591,0.154891,64562.0,64561.0,0.13142659]
[1721233487792,0.00766863,64562.0,64561.0,0.28301433]
[1721233487991,0.154885,64564.0,64561.0,0.28301433]
[1721233488192,0.15754982,64563.0,64562.0,0.19579012]
[1721233488393,0.46732382,64563.0,64562.0,0.19299612]
[1721233488623,0.46732382,64563.0,64558.0,0.02752947]
[1721233488624,0.77446,64561.0,64560.0,0.012]
[1721233488836,1.13730256,64561.0,64560.0,0.012]
[1721233489038,1.90307015,64561.0,64560.0,0.012]
[1721233489249,1.90307015,64561.0,64556.0,0.000913]
[1721233489250,1.538113,64557.0,64556.0,0.000913]
[1721233489508,1.97797456,64557.0,64556.0,0.000913]
[1721233489720,1.98619822,64557.0,64556.0,0.000913]
[1721233490594,2.03619822,64557.0,64556.0,0.000913]
[1721233490929,2.19057996,64557.0,64556.0,0.000913]
[1721233491155,2.22257996,64557.0,64556.0,0.000913]
[1721233491357,1.084797,64528.0,64527.0,0.002794]
[1721233491559,1.084797,64528.0,64527.0,0.15717574]
[1721233491758,1.09292174,64528.0,64527.0,0.15438174]
[1721233491961,0.00812474,64528.0,64527.0,0.15438174]
[1721233492164,0.16309574,64528.0,64527.0,0.15438174]
[1721233492393,0.1,64539.0,64528.0,0.2]
[1721233492711,0.154952,64536.0,64533.0,0.002794]
[1721233492921,0.154955,64535.0,64534.0,0.15438174]
[1721233493382,0.154952,64536.0,64535.0,0.002794]
[1721233493596,0.154952,64536.0,64535.0,0.15438174]
[1721233493796,0.154952,64536.0,64535.0,0.16981991]
[1721233493797,0.77476,64536.0,64535.0,0.16981991]
[1721233494017,1.084664,64536.0,64535.0,0.16981991]
[1721233494583,1.079664,64536.0,64535.0,0.16981991]
[1721233494796,1.079664,64536.0,64528.0,0.012]
[1721233494797,0.774845,64529.0,64528.0,0.012]
[1721233495005,0.774845,64529.0,64528.0,0.16638174]
[1721233495006,1.084783,64529.0,64528.0,0.16638174]
[1721233495774,1.08772052,64529.0,64528.0,0.15438174]
[1721233496457,1.08772052,64529.0,64520.0,0.002794]
[1721233496458,0.77494,64521.0,64520.0,0.002794]
[1721233496580,0.77494,64521.0,64520.0,0.15438174]
[1721233497002,0.77494,64521.0,64513.0,0.002794]
[1721233497003,0.775025,64514.0,64513.0,0.002794]
[1721233497186,0.775025,64514.0,64513.0,0.15438174]
[1721233497187,0.770025,64514.0,64513.0,0.15438174]
[1721233497317,0.77779735,64514.0,64513.0,0.16981991]
[1721233497518,1.08780735,64514.0,64513.0,0.16981991]
[1721233498129,0.15777735,64514.0,64513.0,0.16981991]
[1721233498340,0.00777235,64514.0,64513.0,0.16981991]
[1721233498543,0.001,64521.0,64513.0,0.16981991]
[1721233498544,0.155,64517.0,64513.0,0.16981991]
[1721233498750,0.154976,64526.0,64514.0,0.20965933]
[1721233498967,0.465964,64521.0,64520.0,0.012]
[1721233499183,0.465964,64521.0,64520.0,0.16638174]
[1721233499630,0.001,64521.0,64520.0,0.16638174]
[1721233500455,0.001,64521.0,64520.0,0.22948174]
[1721233500659,0.001,64521.0,64520.0,0.26031991]
[1721233500904,0.154968,64530.0,64523.0,0.154983]
[1721233501107,0.154968,64530.0,64520.0,0.24831991]
[1721233501108,0.309867,64544.0,64524.0,0.15438174]
[1721233501316,0.1,64537.0,64524.0,0.15438174]
[1721233501519,0.309941,64529.0,64524.0,0.15438174]
[1721233501725,0.154973,64528.0,64525.0,0.02563199]
[1721233501932,0.154973,64527.0,64526.0,0.15438174]
[1721233502135,0.1,64536.0,64526.0,0.15438174]
[1721233502386,0.154971,64528.0,64527.0,0.01800137]
[1721233502586,0.154971,64528.0,64527.0,0.16938311]
[1721233502784,0.464913,64528.0,64527.0,0.16938311]
[1721233504209,0.309918,64534.0,64527.0,0.16938311]
[1721233504210,0.154959,64534.0,64527.0,0.16938311]
[1721233504421,0.156952,64536.0,64528.0,0.15717574]
[1721233504646,0.156952,64536.0,64529.0,0.05187521]
[1721233504647,0.002,64536.0,64529.0,0.05187521]
[1721233504884,0.002,64536.0,64528.0,0.15717574]
[1721233504885,0.77482,64531.0,64530.0,0.15717574]
[1721233505098,0.774845,64529.0,64528.0,0.002794]
[1721233505302,0.05,64542.0,64515.0,0.002794]
[1721233505303,0.465,64516.0,64515.0,0.002794]
[1721233505500,0.465,64516.0,64515.0,0.15438174]
[1721233505700,0.465,64516.0,64515.0,0.17005034]
[1721233506549,0.155,64516.0,64515.0,0.17005034]
[1721233506954,0.465,64516.0,64515.0,0.17005034]
[1721233507165,0.775,64516.0,64515.0,0.17005034]
[1721233507379,0.155,64516.0,64515.0,0.17005034]
[1721233507583,0.465,64516.0,64515.0,0.17005034]
[1721233507786,0.775,64516.0,64515.0,0.17005034]
[1721233508008,0.775,64516.0,64515.0,0.18405034]
[1721233508416,0.775,64516.0,64515.0,0.19805034]
[1721233508619,0.465,64516.0,64515.0,0.19805034]
[1721233508825,0.775,64516.0,64515.0,0.18261217]
[1721233509499,0.0645,64524.0,64515.0,0.18261217]
[1721233509699,0.154997,64517.0,64516.0,0.15438174]
[1721233509956,0.464992,64517.0,64516.0,0.15438174]
[1721233510153,0.465,64516.0,64515.0,0.02823043]
[1721233510355,0.875,64516.0,64515.0,0.02823043]
[1721233510729,1.495,64516.0,64515.0,0.01423043]
[1721233510968,1.495,64516.0,64515.0,0.02823043]
[1721233511356,1.495,64516.0,64515.0,0.01423043]
[1721233511559,1.495,64516.0,64515.0,0.00023043]
[1721233511560,2.14634957,64516.0,64515.0,0.00023043]
[1721233511754,2.14634957,64516.0,64515.0,0.01423043]
[1721233511956,2.61073131,64516.0,64515.0,4.3e-07]
[1721233512349,1.892291,64505.0,64504.0,0.009174]
[1721233512563,2.30102231,64505.0,64504.0,0.009174]
[1721233512779,1.085371,64494.0,64493.0,0.009174]
[1721233512995,1.556377,64494.0,64493.0,0.009174]
[1721233513206,1.916483,64494.0,64493.0,0.009174]
[1721233513402,2.40397074,64494.0,64493.0,0.009174]
[1721233513623,1.28946504,64494.0,64493.0,0.009174]
[1721233513874,0.875265,64494.0,64493.0,0.16355574]
[1721233514104,0.875265,64494.0,64493.0,0.02644697]
[1721233514319,1.185371,64494.0,64493.0,0.009174]
[1721233515172,1.187371,64494.0,64493.0,0.011174]
[1721233515385,2.18206474,64494.0,64493.0,0.011174]
[1721233515585,2.13206474,64494.0,64493.0,0.011174]
[1721233515828,2.13006474,64494.0,64493.0,0.011174]
[1721233516086,2.13006474,64494.0,64493.0,0.009174]
[1721233516296,2.18806474,64494.0,64493.0,0.010174]
[1721233516510,0.05,64492.0,64469.0,0.009174]
[1721233516743,1.78025371,64492.0,64491.0,1e-06]
[1721233516939,1.78025371,64492.0,64469.0,0.009174]
[1721233516940,0.465331,64470.0,64469.0,0.009174]
[1721233517148,1.085773,64470.0,64469.0,0.009174]
[1721233517359,1.395994,64470.0,64469.0,0.009174]
[1721233517566,1.495994,64470.0,64469.0,0.009174]
[1721233517999,1.806215,64470.0,64469.0,0.009174]
[1721233518214,1.856215,64470.0,64469.0,0.009174]
[1721233519141,1.879215,64470.0,64469.0,0.009174]
[1721233519354,1.880215,64470.0,64469.0,0.014174]
[1721233519769,1.880215,64470.0,64450.0,0.009174]
[1721233519770,1.756347,64465.0,64450.0,0.009174]
[1721233520013,1.806347,64465.0,64450.0,0.009174]
[1721233520239,1.856347,64465.0,64450.0,0.009174]
[1721233520484,1.806347,64465.0,64450.0,0.009174]
[1721233520692,1.850489,64456.0,64450.0,0.009174]
[1721233520910,2.15922031,64456.0,64450.0,0.009174]
[1721233521086,2.28222031,64456.0,64450.0,0.009174]
[1721233521318,2.59250931,64456.0,64455.0,0.00592873]
[1721233521532,3.40209831,64456.0,64455.0,7.3e-07]
[1721233521739,3.09250931,64456.0,64455.0,7.3e-07]
[1721233521950,2.067034,64451.0,64450.0,1e-06]
[1721233522160,2.32159053,64451.0,64450.0,1e-06]
[1721233522619,3.11269053,64451.0,64450.0,1e-06]
[1721233523044,1.396885,64429.0,64417.0,0.002794]
[1721233523251,1.496885,64429.0,64417.0,0.002794]
[1721233523465,1.96165357,64429.0,64404.0,0.0641]
[1721233523673,1.807304,64429.0,64407.0,0.002794]
[1721233523881,1.496885,64429.0,64407.0,0.002794]
[1721233525389,1.496885,64429.0,64428.0,0.011185]
[1721233525390,1.58314302,64429.0,64428.0,0.011185]
[1721233525594,1.497885,64429.0,64428.0,0.011185]
[1721233525830,1.496885,64429.0,64428.0,0.009185]
[1721233526484,1.506885,64429.0,64428.0,0.009185]
[1721233526931,1.496885,64429.0,64428.0,0.009185]
[1721233527830,1.509885,64429.0,64428.0,0.009185]
[1721233528038,1.505885,64429.0,64428.0,0.009185]
[1721233528447,1.509885,64429.0,64428.0,0.009185]
[1721233528653,1.500885,64429.0,64428.0,0.009185]
[1721233528874,1.190466,64429.0,64428.0,0.009185]
[1721233529082,0.789047,64429.0,64428.0,0.16356674]
[1721233529295,0.789047,64429.0,64428.0,0.009185]
[1721233529505,1.099466,64429.0,64428.0,0.009185]
[1721233529717,1.090466,64429.0,64428.0,0.009185]
[1721233530147,0.789047,64429.0,64428.0,0.009185]
[1721233530356,0.789047,64429.0,64428.0,0.16356674]
[1721233530357,0.889047,64429.0,64428.0,0.16356674]
[1721233530563,0.565628,64429.0,64428.0,0.17992341]
[1721233530794,0.569628,64429.0,64428.0,0.16356674]
[1721233531005,0.159209,64429.0,64428.0,0.16356674]
[1721233531217,0.004,64429.0,64428.0,0.16356674]
[1721233531483,0.156209,64429.0,64428.0,0.16456674]
[1721233531693,0.465628,64429.0,64428.0,0.18002341]
[1721233531901,0.465628,64429.0,64428.0,0.009185]
[1721233531902,1.086466,64429.0,64428.0,0.009185]
[1721233532106,1.096466,64429.0,64428.0,0.010185]
[1721233532321,1.096466,64429.0,64428.0,0.009185]
[1721233532322,1.095466,64429.0,64428.0,0.009185]
[1721233532530,1.505885,64429.0,64428.0,0.009185]
[1721233532732,1.496885,64429.0,64428.0,0.009185]
[1721233532903,1.191466,64429.0,64428.0,0.009185]
[1721233533137,0.260209,64429.0,64428.0,0.16356674]
[1721233533342,0.260209,64429.0,64428.0,0.17992341]
[1721233533343,0.781047,64429.0,64428.0,0.17992341]
[1721233533560,0.776047,64429.0,64428.0,0.17992341]
[1721233533983,1.094466,64429.0,64428.0,0.17992341]
[1721233534422,0.785047,64429.0,64428.0,0.16856674]
[1721233534623,0.474628,64429.0,64428.0,0.16356674]
[1721233534833,0.164209,64429.0,64428.0,0.16356674]
[1721233535240,0.475628,64429.0,64428.0,0.16718447]
[1721233535449,0.475628,64429.0,64428.0,0.18390292]
[1721233535679,0.164209,64429.0,64428.0,0.18390292]
[1721233535880,0.779047,64429.0,64428.0,0.18390292]
[1721233536092,1.089466,64429.0,64428.0,0.18390292]
[1721233536306,1.090466,64429.0,64428.0,0.01280273]
[1721233536936,1.398885,64429.0,64428.0,0.02180273]
[1721233537558,1.088466,64429.0,64428.0,0.02180273]
[1721233537762,0.467628,64429.0,64428.0,0.17618447]
[1721233537973,0.002,64429.0,64428.0,0.49431492]
[1721233538175,0.155188,64438.0,64430.0,0.155206]
[1721233538388,0.0752,64460.0,64433.0,0.15438174]
[1721233538389,0.310352,64443.0,64433.0,0.15438174]
[1721233538602,0.38547,64460.0,64434.0,0.07017247]
[1721233538603,0.310357,64442.0,64434.0,0.07017247]
[1721233538806,0.155186,64439.0,64435.0,0.15438174]
[1721233539438,0.155192,64436.0,64435.0,0.15438174]
[1721233539856,0.15519,64437.0,64435.0,0.15438174]
[1721233540059,0.001,64442.0,64436.0,0.02304507]
[1721233540060,0.310361,64441.0,64436.0,0.02304507]
[1721233540273,0.155187,64438.0,64437.0,0.15438174]
[1721233540677,0.155179,64442.0,64437.0,0.15438174]
[1721233540879,0.155183,64440.0,64438.0,0.03996887]
[1721233541082,0.310357,64442.0,64439.0,0.15438174]
[1721233541299,0.1,64456.0,64439.0,0.15438174]
[1721233541300,0.155183,64440.0,64439.0,0.15438174]
[1721233541505,0.465549,64440.0,64439.0,0.15438174]
[1721233542119,0.775915,64440.0,64439.0,0.15438174]
[1721233542532,0.775915,64440.0,64437.0,0.007]
[1721233542533,0.775937,64438.0,64437.0,0.007]
[1721233542747,1.086312,64438.0,64437.0,0.007]
[1721233542976,1.496687,64438.0,64437.0,0.007]
[1721233543244,1.186312,64438.0,64437.0,0.007]
[1721233543449,1.496687,64438.0,64437.0,0.007]
[1721233544111,1.90223041,64438.0,64437.0,0.007]
[1721233544344,1.086466,64429.0,64428.0,0.00780273]
[1721233544561,1.496885,64429.0,64428.0,0.00780273]
[1721233545680,1.497885,64429.0,64428.0,0.01980273]
[1721233545904,1.497885,64429.0,64428.0,0.03380273]
[1721233546349,2.00431631,64429.0,64428.0,0.03313615]
[1721233547941,2.04462479,64429.0,64428.0,0.00900015]
[1721233548160,2.04462479,64429.0,64412.0,0.009174]
[1721233548161,1.086736,64413.0,64412.0,0.009174]
[1721233548388,1.186736,64413.0,64412.0,0.009174]
[1721233549711,1.192736,64413.0,64412.0,0.010174]
[1721233549938,1.192736,64413.0,64412.0,0.009174]
[1721233549939,1.6225056,64413.0,64412.0,0.009174]
[1721233550165,2.1259016,64413.0,64412.0,0.009174]
[1721233550382,2.0759016,64413.0,64412.0,0.009174]
[1721233550636,1.956628,64413.0,64412.0,0.009174]
[1721233550840,1.646132,64413.0,64412.0,0.009174]
[1721233551055,1.514232,64413.0,64412.0,0.009174]
[1721233551475,0.88224,64413.0,64412.0,0.16355574]
[1721233551683,0.88724,64413.0,64412.0,0.18644131]
[1721233551892,0.88724,64413.0,64412.0,0.16355574]
[1721233551893,0.89224,64413.0,64412.0,0.16355574]
[1721233552247,0.89824,64413.0,64412.0,0.16455574]
[1721233552450,0.89324,64413.0,64412.0,0.009174]
[1721233552651,1.203736,64413.0,64412.0,0.009174]
[1721233553273,1.192736,64413.0,64412.0,0.009174]
[1721233553517,1.198736,64413.0,64412.0,0.009174]
[1721233553721,1.198736,64413.0,64412.0,0.16355574]
[1721233553722,0.88824,64413.0,64412.0,0.16355574]
[1721233554175,0.88224,64413.0,64412.0,0.16355574]
[1721233554384,0.88824,64413.0,64412.0,0.18644131]
[1721233554780,0.88224,64413.0,64412.0,0.18644131]
[1721233555136,0.89024,64413.0,64412.0,0.18644131]
[1721233555330,0.88424,64413.0,64412.0,0.18644131]
[1721233555631,0.88824,64413.0,64412.0,0.16355574]
[1721233556013,0.88824,64413.0,64412.0,0.009174]
[1721233556227,1.200736,64413.0,64412.0,0.009174]
[1721233556438,1.186736,64413.0,64412.0,0.009174]
[1721233556642,0.572744,64413.0,64412.0,0.16355574]
[1721233556906,0.572744,64413.0,64412.0,0.17991131]
[1721233556907,0.011,64413.0,64412.0,0.17991131]
[1721233557118,0.00084,64429.0,64412.0,0.17991131]
[1721233557119,0.31048,64417.0,64412.0,0.17991131]
[1721233557330,0.00084,64429.0,64413.0,0.15717574]
[1721233557331,0.155246,64414.0,64413.0,0.15717574]
[1721233557543,0.310464,64420.0,64413.0,0.15438174]
[1721233557758,0.155244,64415.0,64414.0,0.01799113]
[1721233557960,0.155244,64415.0,64414.0,0.17237287]
[1721233558797,0.155244,64415.0,64414.0,0.31337287]
[1721233559003,0.061,64443.0,64414.0,0.31337287]
[1721233559211,0.155217,64426.0,64421.0,0.15438174]
[1721233559832,0.155221,64425.0,64421.0,0.15438174]
[1721233560035,0.310452,64422.0,64421.0,0.15438174]
[1721233560251,0.465678,64422.0,64421.0,0.15438174]
[1721233560459,1.086582,64422.0,64421.0,0.15438174]
[1721233560668,0.002,64426.0,64421.0,0.16981991]
[1721233560873,0.155226,64423.0,64421.0,0.16981991]
[1721233561080,0.155225,64423.0,64421.0,0.16981991]
[1721233561282,0.155224,64423.0,64421.0,0.16981991]
[1721233561493,0.155226,64422.0,64421.0,0.16981991]
[1721233561696,0.00084,64429.0,64421.0,0.16981991]
[1721233561935,0.00084,64429.0,64425.0,0.1455]
[1721233562147,0.00084,64429.0,64427.0,0.15438174]
[1721233562350,0.00084,64429.0,64428.0,0.04937829]
[1721233562547,0.00084,64429.0,64428.0,0.31269765]
[1721233562761,0.51304871,64462.0,64441.0,0.1455]
[1721233562762,0.46304871,64462.0,64441.0,0.1455]
[1721233562971,0.46304871,64445.0,64444.0,0.15438174]
[1721233563182,0.46304871,64462.0,64444.0,0.15438174]
[1721233563183,0.0764,64472.0,64446.0,0.0611]
[1721233563395,0.155143,64457.0,64453.0,0.0827]
[1721233563601,0.31028,64458.0,64454.0,0.15438174]
[1721233563801,0.310262,64462.0,64454.0,0.15438174]
[1721233564016,0.01586862,64455.0,64454.0,0.15438174]
[1721233564216,0.014,64455.0,64454.0,0.18997737]
[1721233564431,0.310274,64460.0,64454.0,0.18997737]
[1721233564630,0.77321871,64481.0,64459.0,0.15438174]
[1721233564841,0.77321871,64481.0,64455.0,0.06420267]
[1721233564842,0.155111,64470.0,64464.0,0.15438174]
[1721233565052,0.08,64486.0,64464.0,0.15438174]
[1721233565053,0.155113,64469.0,64464.0,0.15438174]